[Event "Asian Continental-ch Open 2019"]
[Site "XingTai"]
[Date "2019.06.09"]
[Round "3.17"]
[White "Jumabayev, Rinat"]
[Black "Raja, Harshit"]
[Result "1-0"]
[ECO "B23"]
[WhiteElo "2625"]
[BlackElo "2437"]
[Annotator "RC"]
[PlyCount "73"]
[EventDate "2019.06.06"]
[EventType "swiss"]
[EventCountry "CHN"]
[SourceTitle "playchess.com"]
[Source "ChessBase"]
[SourceQuality "1"]
[TimeControl "40/5400+30:1800+30"]

1. e4 {[%emt 0:00:50]} c5 {[%emt 0:00:00]} 2. Nc3 {[%emt 0:00:30]} d6 {[%emt 0:00:19]} 3. d4 {[%emt 0:00:30]} cxd4 {[%emt 0:00:30]} 4. Qxd4 {[%emt 0:00:30]} Nc6 {[%emt 0:00:30]} 5. Qd2 {[%emt 0:00:30]} g6 {[%emt 0:00:30]} 6. b3 {[%emt 0:00:30]} Bh6 {[%emt 0:00:30]} 7. f4 {[%emt 0:00:30]} Nf6 {[%emt 0:00:30]} 8. Bb2 {[%emt 0:00:30]} O-O {[%emt 0:00:30]} 9. O-O-O {[%emt 0:00:30]} a5 {[%emt 0:00:30]} 10. a4 {[%emt 0:00:30]} Nb4 {[%emt 0:00:30]} 11. Kb1 {[%emt 0:00:30]} Qb6 {[%emt 0:00:30]} 12. Nf3 {[%emt 0:40:24]} Bd7 {[%emt 0:42:33]} 13. h4 {[%emt 0:05:48]} Rac8 {[%emt 0:00:30]} 14. Ng5 {[%emt 0:25:05]} Bg7 {[%emt 0:14:04]} 15. Rc1 {[%emt 0:00:30]} Ng4 {[%emt 0:10:20]} 16. Bb5 {[%emt 0:00:30]} Bxb5 {[%emt 0:00:30]} 17. Nxb5 {[%emt 0:00:30]} Bxb2 {[%emt 0:00:30]} 18. Kxb2 {[%emt 0:00:30]} Qe3 {[%emt 0:00:30]} 19. Rhd1 {[%emt 0:14:43]} h6 {[%emt 0:08:59]} 20. Nf3 {[%emt 0:00:30]} Qxe4 {[%emt 0:00:30]} 21. Nfd4 {[%emt 0:00:30]} Qe3 {[%emt 0:00:30]} 22. Qxe3 {[%emt 0:00:30]} Nxe3 {[%emt 0:00:30]} 23. Re1 {[%emt 0:00:30]} Ned5 {[%emt 0:00:30]} 24. f5 {[%emt 0:00:30]} Rfe8 {[%emt 0:00:30]} 25. Rcd1 {[%emt 0:00:30]} Nf6 {[%emt 0:00:30]} 26. fxg6 {[%emt 0:00:30]} fxg6 {[%emt 0:00:30]} 27. Re6 {[%emt 0:00:30]} Kf7 {[%emt 0:00:30]} 28. Rf1 {[%emt 0:00:30]} Kg7 {[%emt 0:00:30]} 29. Nxd6 {[%emt 0:00:30]} exd6 {[%emt 0:00:30]} 30. Rfxf6 {[%emt 0:00:30]} Rxe6 {[%emt 0:00:30]} 31. Rxe6 {[%emt 0:00:30]} Rf8 {[%emt 0:00:30]} 32. Rxd6 {[%emt 0:00:30]} Rf2 {[%emt 0:00:30]} 33. g4 {[%emt 0:00:30]} Nd3+ {[%emt 0:00:30]} 34. Kc3 {[%emt 0:00:30]} Nc5 {[%emt 0:00:30]} 35. Kc4 {[%emt 0:00:30]} Ne4 {[%emt 0:00:30]} 36. Rb6 {[%emt 0:00:30]} Kf8 {[%emt 0:00:30]} 37. Rxg6 {[%emt 0:00:30]} 1-0

[Event "Asian Continental-ch Open 2019"]
[Site "XingTai"]
[Date "2019.06.10"]
[Round "4.1"]
[White "Karthikeyan, Murali"]
[Black "Sethuraman, S.P."]
[Result "1/2-1/2"]
[ECO "C67"]
[WhiteElo "2593"]
[BlackElo "2613"]
[Annotator "RC"]
[PlyCount "74"]
[EventDate "2019.06.06"]
[EventType "swiss"]
[EventCountry "CHN"]
[SourceTitle "playchess.com"]
[Source "ChessBase"]
[SourceQuality "1"]
[TimeControl "40/5400+30:1800+30"]

1. e4 {[%emt 0:00:00]} e5 {[%emt 0:00:00]} 2. Nf3 {[%emt 0:00:00]} Nc6 {[%emt 0:00:05]} 3. Bb5 {[%emt 0:00:00]} Nf6 {[%emt 0:00:06]} 4. O-O {[%emt 0:00:00]} Nxe4 {[%emt 0:00:04]} 5. d4 {[%emt 0:00:33]} Nd6 {[%emt 0:00:08]} 6. Bxc6 {[%emt 0:00:17]} dxc6 {[%emt 0:00:06]} 7. dxe5 {[%emt 0:00:07]} Nf5 {[%emt 0:00:10]} 8. Qxd8+ {[%emt 0:00:14]} Kxd8 {[%emt 0:00:06]} 9. Rd1+ {[%emt 0:00:08]} Ke8 {[%emt 0:00:05]} 10. Nc3 {[%emt 0:00:18]} Ne7 {[%emt 0:09:29]} 11. h3 {[%emt 0:04:46]} Ng6 {[%emt 0:00:51]} 12. Ne2 {[%emt 0:21:36]} Be7 {[%emt 0:08:44]} 13. Be3 {[%emt 0:07:13]} Be6 {[%emt 0:19:57]} 14. Ned4 {[%emt 0:10:59]} Bd7 {[%emt 0:02:34]} 15. a4 {[%emt 0:23:43]} a5 {[%emt 0:06:30]} 16. Rd2 {[%emt 0:04:47]} h5 {[%emt 0:12:50]} 17. Rad1 {[%emt 0:01:41]} Nf8 {[%emt 0:06:32]} 18. Bg5 {[%emt 0:03:04]} c5 {[%emt 0:10:30]} 19. Nb5 {[%emt 0:01:57]} Bxb5 {[%emt 0:00:07]} 20. axb5 {[%emt 0:00:04]} f6 {[%emt 0:00:50]} 21. exf6 {[%emt 0:01:13]} gxf6 {[%emt 0:00:04]} 22. Be3 {[%emt 0:02:29]} h4 {[%emt 0:00:10]} 23. Re1 {[%emt 0:01:06]} Kf7 {[%emt 0:01:25]} 24. Bf4 {[%emt 0:00:34]} Rc8 {[%emt 0:03:53]} 25. Kf1 {[%emt 0:06:27]} c4 {[%emt 0:10:23]} 26. Rd4 {[%emt 0:01:19]} Rh5 {[%emt 0:00:31]} 27. Rxc4 {[%emt 0:01:34]} Rxb5 {[%emt 0:00:04]} 28. b3 {[%emt 0:00:30]} Ng6 {[%emt 0:01:49]} 29. Bxc7 {[%emt 0:01:24]} Rb4 {[%emt 0:01:39]} 30. Bxa5 {[%emt 0:00:46]} Rbxc4 {[%emt 0:00:05]} 31. bxc4 {[%emt 0:00:03]} Rxc4 {[%emt 0:00:06]} 32. Rc1 {[%emt 0:02:16]} b5 {[%emt 0:01:00]} 33. Bd2 {[%emt 0:01:47]} b4 {[%emt 0:01:49]} 34. Ke2 {[%emt 0:00:39]} Rc8 {[%emt 0:01:17]} 35. g3 {[%emt 0:02:59]} hxg3 36. fxg3 {[%emt 0:00:02]} Bd6 {[%emt 0:00:44]} 37. Kf2 {[%emt 0:00:50]} Ne7 {[%emt 0:01:05]} 1/2-1/2

[Event "Asian Continental-ch Open 2019"]
[Site "XingTai"]
[Date "2019.06.10"]
[Round "4.2"]
[White "Gupta, Abhijeet"]
[Black "Firouzja, Alireza"]
[Result "0-1"]
[ECO "E04"]
[WhiteElo "2606"]
[BlackElo "2682"]
[Annotator "RC"]
[PlyCount "78"]
[EventDate "2019.06.06"]
[EventType "swiss"]
[EventCountry "CHN"]
[SourceTitle "playchess.com"]
[Source "ChessBase"]
[SourceQuality "1"]
[TimeControl "40/5400+30:1800+30"]

1. d4 {[%emt 0:00:00]} d5 {[%emt 0:00:00]} 2. c4 {[%emt 0:00:10]} c6 {[%emt 0:00:00]} 3. Nf3 {[%emt 0:01:01]} Nf6 {[%emt 0:00:00]} 4. Nc3 {[%emt 0:00:10]} e6 {[%emt 0:00:02]} 5. g3 {[%emt 0:01:03]} dxc4 {[%emt 0:00:26]} 6. Ne5 {[%emt 0:01:14]} b5 {[%emt 0:03:59]} 7. Bg2 {[%emt 0:00:11]} a6 {[%emt 0:00:23]} 8. O-O {[%emt 0:00:06]} Bb7 {[%emt 0:00:09]} 9. b3 {[%emt 0:00:51]} b4 {[%emt 0:00:09]} 10. Ne4 {[%emt 0:00:22]} Nxe4 {[%emt 0:00:19]} 11. Bxe4 {[%emt 0:00:04]} c3 {[%emt 0:00:07]} 12. a3 {[%emt 0:01:28]} a5 {[%emt 0:00:06]} 13. axb4 {[%emt 0:04:36]} Bxb4 {[%emt 0:00:51]} 14. Ra4 {[%emt 0:07:55]} O-O {[%emt 0:04:48]} 15. Ba3 {[%emt 0:01:44]} Qe7 {[%emt 0:07:43]} 16. Qc1 {[%emt 0:12:17]} Rd8 {[%emt 0:11:42]} 17. e3 {[%emt 0:02:53]} c5 {[%emt 0:02:04]} 18. Bxb7 {[%emt 0:00:47]} Qxb7 {[%emt 0:00:07]} 19. dxc5 {[%emt 0:00:07]} Na6 {[%emt 0:14:07]} 20. Nc4 {[%emt 0:26:43]} Nxc5 {[%emt 0:05:12]} 21. Nxa5 {[%emt 0:00:18]} Rxa5 {[%emt 0:08:12]} 22. Rxb4 {[%emt 0:00:05]} Qa7 {[%emt 0:01:04]} 23. Rd4 {[%emt 0:00:07]} Rxd4 {[%emt 0:01:06]} 24. Bxc5 {[%emt 0:00:04]} Rxc5 {[%emt 0:00:50]} 25. exd4 {[%emt 0:00:06]} Rc8 {[%emt 0:00:08]} 26. Qe3 {[%emt 0:00:05]} Qa3 {[%emt 0:02:22]} 27. Rc1 {[%emt 0:00:11]} c2 {[%emt 0:05:41]} 28. Kf1 {[%emt 0:00:10]} h6 {[%emt 0:01:32]} 29. Ke2 {[%emt 0:01:42]} Rc3 {[%emt 0:00:54]} 30. Qf4 {[%emt 0:00:50]} Qxb3 {[%emt 0:00:49]} 31. Qe4 {[%emt 0:00:07]} Rc8 {[%emt 0:07:23]} 32. Qd3 {[%emt 0:00:48]} Rc3 {[%emt 0:00:22]} 33. Qe4 {[%emt 0:00:03]} Qc4+ {[%emt 0:05:13]} 34. Ke1 {[%emt 0:01:17]} Rd3 {[%emt 0:02:11]} 35. Qa8+ {[%emt 0:00:08]} Kh7 {[%emt 0:00:05]} 36. Qe4+ {[%emt 0:00:03]} f5 {[%emt 0:00:28]} 37. Qe2 {[%emt 0:00:15]} Qc3+ {[%emt 0:00:21]} 38. Kf1 {[%emt 0:00:03]} Rd2 {[%emt 0:00:04]} 39. Qxe6 {[%emt 0:00:15]} Qf3 {[%emt 0:00:11]} 0-1

[Event "Asian Continental-ch Open 2019"]
[Site "XingTai"]
[Date "2019.06.10"]
[Round "4.11"]
[White "Narayanan.S.L"]
[Black "Ma, Zhonghan"]
[Result "1-0"]
[ECO "E12"]
[WhiteElo "2603"]
[BlackElo "2488"]
[Annotator "RC"]
[PlyCount "75"]
[EventDate "2019.06.06"]
[EventType "swiss"]
[EventCountry "CHN"]
[SourceTitle "playchess.com"]
[Source "ChessBase"]
[SourceQuality "1"]
[TimeControl "40/5400+30:1800+30"]

1. d4 {[%emt 0:00:00]} Nf6 {[%emt 0:00:00]} 2. c4 {[%emt 0:00:00]} e6 {[%emt 0:00:07]} 3. Nf3 {[%emt 0:00:00]} b6 {[%emt 0:00:21]} 4. a3 {[%emt 0:00:01]} Bb7 {[%emt 0:00:47]} 5. Nc3 {[%emt 0:00:09]} d5 {[%emt 0:00:39]} 6. cxd5 {[%emt 0:00:09]} Nxd5 {[%emt 0:00:48]} 7. e3 {[%emt 0:00:37]} Be7 {[%emt 0:00:58]} 8. Bb5+ {[%emt 0:00:14]} c6 {[%emt 0:00:56]} 9. Bd3 {[%emt 0:00:07]} c5 {[%emt 0:01:02]} 10. e4 {[%emt 0:01:24]} Nxc3 {[%emt 0:02:53]} 11. bxc3 {[%emt 0:00:09]} Nc6 {[%emt 0:01:15]} 12. O-O {[%emt 0:01:01]} cxd4 {[%emt 0:02:07]} 13. cxd4 {[%emt 0:00:14]} O-O {[%emt 0:01:00]} 14. Bb2 {[%emt 0:05:26]} Bf6 {[%emt 0:03:08]} 15. e5 {[%emt 0:00:45]} Be7 {[%emt 0:00:02]} 16. Qc2 {[%emt 0:00:34]} h6 {[%emt 0:04:39]} 17. Qe2 {[%emt 0:01:42]} Qd5 {[%emt 0:02:48]} 18. Rad1 {[%emt 0:36:18]} Na5 {[%emt 0:00:27]} 19. Ne1 {[%emt 0:00:41]} Rac8 {[%emt 0:13:06]} 20. f4 {[%emt 0:00:18]} f5 {[%emt 0:14:32]} 21. exf6 {[%emt 0:02:31]} Bxf6 {[%emt 0:03:28]} 22. Nc2 {[%emt 0:06:17]} Nc4 {[%emt 0:10:51]} 23. Ba1 {[%emt 0:04:14]} b5 {[%emt 0:07:46]} 24. Qg4 {[%emt 0:03:46]} Rce8 {[%emt 0:07:38]} 25. Qg6 {[%emt 0:06:25]} Rf7 {[%emt 0:01:16]} 26. Rfe1 {[%emt 0:04:19]} Kf8 {[%emt 0:05:42]} 27. Re2 {[%emt 0:04:39]} Qd6 {[%emt 0:07:09]} 28. Qh7 {[%emt 0:08:08]} Bd5 {[%emt 0:02:54]} 29. Rf1 {[%emt 0:10:03]} Ke7 {[%emt 0:01:38]} 30. Bg6 {[%emt 0:00:44]} Ref8 {[%emt 0:01:16]} 31. f5 {[%emt 0:01:02]} Bh4 {[%emt 0:02:09]} 32. Bc3 {[%emt 0:00:52]} a5 {[%emt 0:00:41]} 33. Nb4 {[%emt 0:00:56]} Nxa3 {[%emt 0:01:23]} 34. Nxd5+ {[%emt 0:00:07]} Qxd5 {[%emt 0:00:02]} 35. Bxf7 {[%emt 0:00:08]} Rxf7 {[%emt 0:00:02]} 36. Rxe6+ {[%emt 0:00:13]} Kd7 {[%emt 0:00:53]} 37. Qg8 {[%emt 0:00:08]} Rxf5 {[%emt 0:01:15]} 38. Qe8+ {[%emt 0:00:05]} 1-0

[Event "Asian Continental-ch Open 2019"]
[Site "XingTai"]
[Date "2019.06.10"]
[Round "4.14"]
[White "Rahul Srivatshav P"]
[Black "Lalith Babu M R"]
[Result "0-1"]
[ECO "A37"]
[WhiteElo "2395"]
[BlackElo "2571"]
[Annotator "RC"]
[PlyCount "118"]
[EventDate "2019.06.06"]
[EventType "swiss"]
[EventCountry "CHN"]
[SourceTitle "playchess.com"]
[Source "ChessBase"]
[SourceQuality "1"]
[TimeControl "40/5400+30:1800+30"]

1. c4 {[%emt 0:00:00]} c5 {[%emt 0:00:02]} 2. Nf3 {[%emt 0:00:10]} g6 {[%emt 0:00:34]} 3. Nc3 {[%emt 0:02:43]} Bg7 {[%emt 0:00:32]} 4. g3 {[%emt 0:03:23]} Nc6 {[%emt 0:00:20]} 5. Bg2 {[%emt 0:00:58]} d6 {[%emt 0:00:09]} 6. O-O {[%emt 0:01:46]} Bf5 {[%emt 0:00:15]} 7. b3 {[%emt 0:05:36]} Qd7 {[%emt 0:04:10]} 8. Bb2 {[%emt 0:04:32]} h5 {[%emt 0:01:22]} 9. h4 {[%emt 0:09:56]} Nh6 {[%emt 0:02:01]} 10. Re1 {[%emt 0:04:18]} Bg4 {[%emt 0:06:43]} 11. d3 {[%emt 0:01:47]} Nf5 {[%emt 0:02:44]} 12. Nh2 {[%emt 0:05:43]} Nh6 {[%emt 0:02:30]} 13. Nf3 {[%emt 0:01:51]} Bh3 {[%emt 0:15:26]} 14. Bh1 {[%emt 0:00:28]} Nf5 {[%emt 0:01:12]} 15. Qd2 {[%emt 0:01:44]} Bg4 {[%emt 0:10:34]} 16. Nh2 {[%emt 0:01:15]} O-O-O {[%emt 0:02:25]} 17. Nd5 {[%emt 0:05:25]} Bxb2 {[%emt 0:09:54]} 18. Qxb2 {[%emt 0:00:08]} e6 {[%emt 0:00:02]} 19. Nf6 {[%emt 0:02:04]} Qc7 {[%emt 0:00:12]} 20. a3 {[%emt 0:02:35]} Ne5 {[%emt 0:05:05]} 21. b4 {[%emt 0:07:51]} Bh3 {[%emt 0:00:59]} 22. Ne4 {[%emt 0:03:43]} b6 {[%emt 0:06:45]} 23. a4 {[%emt 0:00:59]} Kd7 {[%emt 0:00:17]} 24. Ng5 {[%emt 0:06:36]} Bg4 {[%emt 0:00:31]} 25. f4 {[%emt 0:00:05]} f6 {[%emt 0:05:01]} 26. Ne4 {[%emt 0:00:38]} Nc6 {[%emt 0:00:57]} 27. bxc5 {[%emt 0:01:51]} dxc5 {[%emt 0:00:48]} 28. a5 {[%emt 0:02:49]} Nxa5 {[%emt 0:00:27]} 29. Nxf6+ {[%emt 0:01:38]} Kc8 {[%emt 0:01:40]} 30. Qb5 {[%emt 0:02:06]} Nxg3 {[%emt 0:01:17]} 31. Qa6+ {[%emt 0:09:14]} Kb8 {[%emt 0:01:29]} 32. Nhxg4 {[%emt 0:00:23]} hxg4 {[%emt 0:00:26]} 33. Rxa5 {[%emt 0:01:36]} Nxh1 {[%emt 0:01:40]} 34. Rb1 {[%emt 0:00:07]} Ng3 {[%emt 0:11:04]} 35. Rxb6+ {[%emt 0:01:08]} Qxb6 {[%emt 0:00:05]} 36. Rb5 {[%emt 0:00:08]} Rd6 {[%emt 0:01:57]} 37. Rxb6+ {[%emt 0:01:15]} axb6 {[%emt 0:00:32]} 38. Kf2 {[%emt 0:00:51]} Nf5 {[%emt 0:01:11]} 39. Ne4 {[%emt 0:00:18]} g3+ {[%emt 0:00:34]} 40. Kg2 {[%emt 0:00:00]} Rc6 {[%emt 0:00:00]} 41. Nxc5 {[%emt 0:07:26]} Rh7 {[%emt 0:05:02]} 42. Qb5 {[%emt 0:00:45]} Nd4 {[%emt 0:06:19]} 43. Qb2 {[%emt 0:00:16]} Nf5 {[%emt 0:02:57]} 44. Qe5+ {[%emt 0:03:01]} Ka7 {[%emt 0:02:40]} 45. Qa1+ {[%emt 0:00:30]} Kb8 {[%emt 0:00:16]} 46. Na6+ {[%emt 0:00:23]} Kb7 {[%emt 0:00:36]} 47. Nb4 {[%emt 0:00:19]} Rxh4 {[%emt 0:02:31]} 48. Qa6+ {[%emt 0:11:26]} Kc7 {[%emt 0:00:09]} 49. Nxc6 {[%emt 0:00:32]} Rh2+ {[%emt 0:00:24]} 50. Kg1 {[%emt 0:00:48]} Ne3 {[%emt 0:02:13]} 51. Qa7+ {[%emt 0:00:08]} Kxc6 {[%emt 0:00:03]} 52. Qa8+ {[%emt 0:00:09]} Kc7 {[%emt 0:02:59]} 53. Qf3 {[%emt 0:00:21]} Nf5 {[%emt 0:00:03]} 54. e4 {[%emt 0:02:23]} Rf2 {[%emt 0:00:30]} 55. Qg4 {[%emt 0:00:21]} Rf1+ {[%emt 0:00:07]} 56. Kxf1 {[%emt 0:00:25]} Ne3+ {[%emt 0:00:03]} 57. Ke2 {[%emt 0:00:00]} Nxg4 {[%emt 0:00:00]} 58. Kf3 {[%emt 0:00:00]} Nf2 {[%emt 0:00:00]} 59. d4 {[%emt 0:00:00]} Nxe4 {[%emt 0:00:00]} 0-1

[Event "Asian Continental-ch Open 2019"]
[Site "XingTai"]
[Date "2019.06.11"]
[Round "5.1"]
[White "Firouzja, Alireza"]
[Black "Karthikeyan, Murali"]
[Result "0-1"]
[ECO "E90"]
[WhiteElo "2682"]
[BlackElo "2593"]
[Annotator "RC"]
[PlyCount "104"]
[EventDate "2019.06.06"]
[EventType "swiss"]
[EventCountry "CHN"]
[SourceTitle "playchess.com"]
[Source "ChessBase"]
[SourceQuality "1"]
[TimeControl "40/5400+30:1800+30"]

1. d4 {[%emt 0:00:00]} Nf6 {[%emt 0:00:00]} 2. c4 {[%emt 0:00:00]} g6 {[%emt 0:00:00]} 3. Nc3 {[%emt 0:00:00]} Bg7 {[%emt 0:00:00]} 4. e4 {[%emt 0:00:00]} d6 {[%emt 0:00:00]} 5. h3 {[%emt 0:05:02]} O-O {[%emt 0:00:00]} 6. Be3 {[%emt 0:00:02]} c5 {[%emt 0:00:00]} 7. Nf3 {[%emt 0:02:15]} Qa5 {[%emt 0:00:30]} 8. Nd2 {[%emt 0:05:47]} cxd4 {[%emt 0:06:52]} 9. Nb3 {[%emt 0:00:12]} Qxc3+ {[%emt 0:21:28]} 10. bxc3 {[%emt 0:00:03]} dxe3 {[%emt 0:00:06]} 11. f3 {[%emt 0:12:50]} Nh5 {[%emt 0:00:56]} 12. Qc1 {[%emt 0:02:09]} Bh6 {[%emt 0:01:25]} 13. g4 {[%emt 0:05:32]} Nf4 {[%emt 0:01:30]} 14. Kd1 {[%emt 0:04:50]} Ne6 {[%emt 0:14:01]} 15. Kc2 {[%emt 0:07:40]} Nc6 {[%emt 0:04:28]} 16. h4 {[%emt 0:01:53]} Bf4 {[%emt 0:00:23]} 17. Qd1 {[%emt 0:11:02]} Ne5 {[%emt 0:14:39]} 18. Nc1 {[%emt 0:04:18]} Bd7 {[%emt 0:00:57]} 19. a4 {[%emt 0:00:35]} Rac8 {[%emt 0:04:58]} 20. Ne2 {[%emt 0:02:09]} Bh6 {[%emt 0:01:31]} 21. g5 {[%emt 0:09:11]} Bg7 {[%emt 0:00:27]} 22. Bh3 {[%emt 0:00:29]} Nxf3 {[%emt 0:08:48]} 23. Qd3 {[%emt 0:02:42]} Ne5 {[%emt 0:00:56]} 24. Qxe3 {[%emt 0:00:06]} Nxc4 {[%emt 0:07:24]} 25. Qf2 {[%emt 0:03:10]} Rc5 {[%emt 0:01:31]} 26. Rhb1 {[%emt 0:03:21]} Bc6 {[%emt 0:00:25]} 27. Bg2 {[%emt 0:00:22]} f5 {[%emt 0:01:51]} 28. gxf6 {[%emt 0:04:06]} Bxf6 {[%emt 0:01:33]} 29. Rf1 {[%emt 0:06:53]} Bxc3 {[%emt 0:04:07]} 30. Qxc5 {[%emt 0:01:16]} Nxc5 {[%emt 0:00:10]} 31. Rxf8+ {[%emt 0:00:12]} Kxf8 {[%emt 0:00:02]} 32. Kxc3 {[%emt 0:00:01]} Ne5 {[%emt 0:00:41]} 33. a5 {[%emt 0:00:17]} Nxe4+ {[%emt 0:00:16]} 34. Bxe4 {[%emt 0:00:42]} Bxe4 {[%emt 0:00:02]} 35. Nd4 {[%emt 0:00:23]} Bd5 {[%emt 0:02:36]} 36. Nb5 {[%emt 0:01:21]} a6 {[%emt 0:00:34]} 37. Nc7 {[%emt 0:00:01]} Bc6 {[%emt 0:01:49]} 38. Rf1+ {[%emt 0:00:39]} Kg7 {[%emt 0:00:09]} 39. Ne6+ {[%emt 0:01:43]} Kh6 {[%emt 0:00:02]} 40. Rf8 {[%emt 0:00:00]} Kh5 {[%emt 0:00:00]} 41. Rh8 {[%emt 0:05:24]} h6 {[%emt 0:03:54]} 42. Rh7 {[%emt 0:00:22]} Kxh4 {[%emt 0:00:10]} 43. Rxh6+ {[%emt 0:01:28]} Kg4 {[%emt 0:00:18]} 44. Nd4 {[%emt 0:00:16]} Kg5 {[%emt 0:06:00]} 45. Rh2 {[%emt 0:01:30]} Bd5 {[%emt 0:00:32]} 46. Re2 {[%emt 0:00:45]} Kf4 {[%emt 0:02:01]} 47. Rf2+ {[%emt 0:00:41]} Nf3 {[%emt 0:01:37]} 48. Re2 {[%emt 0:00:49]} e5 {[%emt 0:02:19]} 49. Nc2 {[%emt 0:00:09]} Be4 {[%emt 0:00:17]} 50. Ne3 {[%emt 0:00:41]} d5 {[%emt 0:00:07]} 51. Kb4 {[%emt 0:00:03]} Nd4 {[%emt 0:01:52]} 52. Re1 {[%emt 0:00:09]} Kf3 {[%emt 0:00:09]} 0-1

[Event "Asian Continental-ch Open 2019"]
[Site "XingTai"]
[Date "2019.06.11"]
[Round "5.10"]
[White "Maghsoodloo, Parham"]
[Black "Wan, Yunguo"]
[Result "1/2-1/2"]
[ECO "A30"]
[WhiteElo "2665"]
[BlackElo "2531"]
[Annotator "RC"]
[PlyCount "208"]
[EventDate "2019.06.06"]
[EventType "swiss"]
[EventCountry "CHN"]
[SourceTitle "playchess.com"]
[Source "ChessBase"]
[SourceQuality "1"]
[TimeControl "40/5400+30:1800+30"]

1. c4 {[%emt 0:00:36]} Nf6 {[%emt 0:00:13]} 2. Nf3 {[%emt 0:00:46]} g6 {[%emt 0:01:23]} 3. b3 {[%emt 0:00:27]} Bg7 {[%emt 0:02:24]} 4. Bb2 {[%emt 0:00:08]} c5 {[%emt 0:05:29]} 5. g3 {[%emt 0:00:28]} b6 {[%emt 0:00:32]} 6. Bg2 {[%emt 0:00:21]} Bb7 {[%emt 0:00:05]} 7. O-O {[%emt 0:00:07]} O-O {[%emt 0:00:04]} 8. d4 {[%emt 0:03:27]} cxd4 {[%emt 0:00:09]} 9. Qxd4 {[%emt 0:00:21]} d6 {[%emt 0:03:56]} 10. Rd1 {[%emt 0:06:12]} Nbd7 {[%emt 0:02:05]} 11. Ne1 {[%emt 0:06:36]} Qb8 {[%emt 0:12:08]} 12. Nc3 {[%emt 0:20:11]} Ne4 {[%emt 0:14:20]} 13. Qe3 {[%emt 0:02:18]} Nxc3 {[%emt 0:00:11]} 14. Bxc3 {[%emt 0:00:09]} Bxc3 {[%emt 0:00:20]} 15. Qxc3 {[%emt 0:00:07]} Nf6 {[%emt 0:00:11]} 16. Qe3 {[%emt 0:03:21]} Re8 {[%emt 0:11:14]} 17. a4 {[%emt 0:03:39]} Bxg2 {[%emt 0:01:44]} 18. Nxg2 {[%emt 0:00:08]} Qb7 {[%emt 0:00:16]} 19. Nf4 {[%emt 0:01:01]} Rac8 {[%emt 0:08:41]} 20. f3 {[%emt 0:04:15]} Rc5 {[%emt 0:03:02]} 21. Qd2 {[%emt 0:00:43]} a6 {[%emt 0:03:43]} 22. e4 {[%emt 0:04:11]} Rec8 {[%emt 0:01:00]} 23. Nd3 {[%emt 0:03:30]} R5c7 {[%emt 0:00:58]} 24. Qe3 {[%emt 0:00:42]} Nd7 {[%emt 0:02:37]} 25. Nb4 {[%emt 0:00:44]} Nf6 {[%emt 0:02:08]} 26. Kg2 {[%emt 0:02:27]} Rc5 {[%emt 0:05:43]} 27. Rd2 {[%emt 0:03:46]} Ra5 {[%emt 0:02:14]} 28. Rda2 {[%emt 0:05:46]} Qc7 {[%emt 0:03:51]} 29. Qd2 {[%emt 0:03:22]} Qd8 {[%emt 0:05:49]} 30. Rc1 {[%emt 0:04:47]} Nd7 {[%emt 0:01:25]} 31. Rb2 {[%emt 0:01:20]} Ne5 {[%emt 0:01:48]} 32. Rbc2 {[%emt 0:05:18]} h5 {[%emt 0:01:06]} 33. h3 {[%emt 0:02:35]} Kh7 {[%emt 0:00:39]} 34. g4 {[%emt 0:02:49]} h4 {[%emt 0:01:26]} 35. g5 {[%emt 0:02:35]} e6 {[%emt 0:01:35]} 36. f4 {[%emt 0:00:01]} Nc6 {[%emt 0:00:21]} 37. Rd1 {[%emt 0:02:20]} Nxb4 {[%emt 0:01:15]} 38. Qxb4 {[%emt 0:00:01]} Rac5 {[%emt 0:00:38]} 39. Rcd2 {[%emt 0:00:26]} R8c6 {[%emt 0:00:29]} 40. Kf3 {[%emt 0:00:00]} e5 {[%emt 0:00:00]} 41. Rd5 {[%emt 0:01:27]} Qc8 {[%emt 0:06:46]} 42. Kg2 {[%emt 0:03:53]} exf4 {[%emt 0:00:50]} 43. Qe1 {[%emt 0:01:32]} f3+ {[%emt 0:00:35]} 44. Kh2 {[%emt 0:00:06]} b5 {[%emt 0:01:16]} 45. Qxh4+ {[%emt 0:12:03]} Kg8 {[%emt 0:00:20]} 46. Qf4 {[%emt 0:08:14]} bxc4 {[%emt 0:12:08]} 47. bxc4 {[%emt 0:02:34]} Rxd5 {[%emt 0:03:55]} 48. Rxd5 {[%emt 0:04:23]} Rxc4 {[%emt 0:00:12]} 49. Rxd6 {[%emt 0:01:24]} Rc2+ {[%emt 0:05:39]} 50. Kg3 {[%emt 0:00:06]} f2 {[%emt 0:01:39]} 51. Rd3 {[%emt 0:02:52]} Qe8 {[%emt 0:02:43]} 52. Kg2 {[%emt 0:03:25]} Re2 {[%emt 0:01:05]} 53. Rd4 {[%emt 0:00:12]} Qe6 {[%emt 0:01:29]} 54. Qf6 {[%emt 0:01:57]} Qxf6 {[%emt 0:00:37]} 55. gxf6 {[%emt 0:00:01]} g5 {[%emt 0:00:21]} 56. Kf1 {[%emt 0:00:30]} Ra2 {[%emt 0:00:14]} 57. e5 {[%emt 0:00:52]} Kh7 {[%emt 0:00:33]} 58. Rg4 {[%emt 0:00:49]} Kh6 {[%emt 0:00:52]} 59. h4 {[%emt 0:00:34]} Rb2 {[%emt 0:00:31]} 60. Rxg5 {[%emt 0:00:30]} Rb4 {[%emt 0:00:05]} 61. Rf5 {[%emt 0:00:19]} Kg6 {[%emt 0:00:31]} 62. Rg5+ {[%emt 0:00:41]} Kh6 {[%emt 0:00:02]} 63. Rg7 {[%emt 0:00:30]} Re4 {[%emt 0:00:02]} 64. Rxf7 {[%emt 0:00:26]} Rxe5 {[%emt 0:00:05]} 65. Ra7 {[%emt 0:00:28]} a5 {[%emt 0:00:38]} 66. Kxf2 {[%emt 0:00:13]} Kg6 {[%emt 0:01:36]} 67. f7 {[%emt 0:00:17]} Kg7 {[%emt 0:00:01]} 68. Kf3 {[%emt 0:00:20]} Rc5 {[%emt 0:00:06]} 69. Kf2 {[%emt 0:01:14]} Kf8 {[%emt 0:01:00]} 70. Kg2 {[%emt 0:00:11]} Rh5 {[%emt 0:00:41]} 71. Kg3 {[%emt 0:00:39]} Rc5 {[%emt 0:00:05]} 72. Kf3 {[%emt 0:00:05]} Rc3+ {[%emt 0:00:12]} 73. Ke2 {[%emt 0:00:17]} Rc5 {[%emt 0:00:04]} 74. Kd3 {[%emt 0:00:04]} Rh5 {[%emt 0:00:26]} 75. Kc4 {[%emt 0:00:04]} Kg7 {[%emt 0:00:38]} 76. Rc7 {[%emt 0:00:54]} Kf8 {[%emt 0:00:04]} 77. Rd7 {[%emt 0:00:18]} Kg7 {[%emt 0:00:04]} 78. f8=Q+ {[%emt 0:02:01]} Kxf8 {[%emt 0:00:05]} 79. Rd5 {[%emt 0:00:03]} Rxh4+ {[%emt 0:00:14]} 80. Kb5 {[%emt 0:00:03]} Ke7 {[%emt 0:00:38]} 81. Kxa5 {[%emt 0:00:03]} Ke6 {[%emt 0:02:03]} 82. Rd1 {[%emt 0:00:56]} Rh2 {[%emt 0:00:21]} 83. Kb4 {[%emt 0:00:23]} Rb2+ {[%emt 0:00:16]} 84. Kc4 {[%emt 0:00:24]} Rc2+ {[%emt 0:00:35]} 85. Kb4 {[%emt 0:01:14]} Rb2+ {[%emt 0:00:15]} 86. Kc4 {[%emt 0:00:46]} Rc2+ {[%emt 0:00:05]} 87. Kb3 {[%emt 0:00:03]} Rc6 {[%emt 0:00:15]} 88. a5 {[%emt 0:00:42]} Rd6 {[%emt 0:01:02]} 89. Ra1 {[%emt 0:00:01]} Ra6 {[%emt 0:02:22]} 90. Kb4 {[%emt 0:00:18]} Kd7 {[%emt 0:00:47]} 91. Kb5 {[%emt 0:00:19]} Ra8 {[%emt 0:00:09]} 92. a6 {[%emt 0:00:03]} Rb8+ {[%emt 0:00:47]} 93. Ka5 {[%emt 0:00:05]} Rh8 {[%emt 0:00:35]} 94. Rc1 {[%emt 0:02:34]} Rh2 {[%emt 0:00:10]} 95. a7 {[%emt 0:00:15]} Ra2+ {[%emt 0:00:14]} 96. Kb6 {[%emt 0:00:01]} Rb2+ {[%emt 0:00:06]} 97. Kc5 {[%emt 0:00:24]} Ra2 {[%emt 0:00:17]} 98. Rh1 {[%emt 0:00:55]} Kc8 {[%emt 0:00:19]} 99. Rh7 {[%emt 0:00:26]} Ra1 {[%emt 0:00:13]} 100. Re7 {[%emt 0:00:25]} Rc1+ {[%emt 0:00:16]} 101. Kd5 {[%emt 0:00:14]} Rd1+ {[%emt 0:00:11]} 102. Kc4 {[%emt 0:00:13]} Ra1 {[%emt 0:00:10]} 103. Rg7 {[%emt 0:00:13]} Ra2 {[%emt 0:00:07]} 104. Kb5 {[%emt 0:00:08]} Rb2+ {[%emt 0:00:19]} 1/2-1/2